[Event "SS Manhem Chess Week 2022: Goteborg Open"]
[Site "Schackcentrum, Vegagatan 20, Gothenburg, Sweden"]
[Date "2022.08.12"]
[Round "2.5"]
[White "Jonbrink, Per-Olof"]
[Black "Kasib, Laith"]
[Result "0-1"]
[TimeControl "15 minutes + 5 seconds per move from move one (Round 1 - 4) / 90 minutes + 30 seconds per move from move one (Round 5 - 8)"]
[BlackTitle "FM"]
[WhiteFideId "1720163"]
[BlackFideId "4801059"]
[WhiteElo "1728"]
[BlackElo "2051"]

1. e4 {[%clk 00:15:07]} {[%emt 00:00:03]} c5 {[%clk 00:11:48]} {[%emt
00:03:22]} 2. Nf3 {[%clk 00:14:55]} {[%emt 00:00:16]} d6 {[%clk 00:11:51]}
{[%emt 00:00:01]} 3. d4 {[%clk 00:14:59]} {[%emt 00:00:02]} cxd4 {[%clk
00:11:55]} {[%emt 00:00:01]} 4. Nxd4 {[%clk 00:15:03]} {[%emt 00:00:01]} Nf6
{[%clk 00:11:59]} 5. Nc3 {[%clk 00:15:06]} {[%emt 00:00:02]} g6 {[%clk
00:12:03]} 6. Be3 {[%clk 00:14:56]} {[%emt 00:00:15]} Bg7 {[%clk 00:12:07]}
{[%emt 00:00:01]} 7. Be2 {[%clk 00:14:45]} {[%emt 00:00:16]} Nc6 {[%clk
00:12:10]} {[%emt 00:00:02]} 8. O-O {[%clk 00:14:32]} {[%emt 00:00:17]} O-O
{[%clk 00:12:13]} {[%emt 00:00:03]} 9. Nb3 {[%clk 00:14:06]} {[%emt 00:00:32]}
e6 {[%clk 00:10:41]} {[%emt 00:01:37]} 10. Qe1 {[%clk 00:13:41]} {[%emt
00:00:31]} d5 {[%clk 00:10:43]} {[%emt 00:00:03]} 11. exd5 {[%clk 00:12:40]}
{[%emt 00:01:05]} exd5 {[%clk 00:10:45]} {[%emt 00:00:02]} 12. Rd1 {[%clk
00:12:19]} {[%emt 00:00:26]} Be6 {[%clk 00:09:26]} {[%emt 00:01:25]} 13. Qd2
{[%clk 00:10:37]} {[%emt 00:01:47]} Ne4 {[%clk 00:08:59]} {[%emt 00:00:32]} 14.
Nxe4 {[%clk 00:09:31]} {[%emt 00:01:11]} dxe4 {[%clk 00:09:02]} {[%emt
00:00:02]} 15. Nd4 {[%clk 00:09:01]} {[%emt 00:00:35]} Nxd4 {[%clk 00:07:42]}
{[%emt 00:01:24]} 16. Bxd4 {[%clk 00:09:03]} {[%emt 00:00:03]} Qxd4 {[%clk
00:06:58]} {[%emt 00:00:50]} 17. Qxd4 {[%clk 00:08:56]} {[%emt 00:00:11]} Bxd4
{[%clk 00:07:02]} {[%emt 00:00:02]} 18. Rxd4 {[%clk 00:09:00]} {[%emt
00:00:01]} Rfc8 {[%clk 00:06:55]} {[%emt 00:00:12]} 19. c4 {[%clk 00:07:31]}
{[%emt 00:01:34]} f5 {[%clk 00:06:15]} {[%emt 00:00:44]} 20. Rfd1 {[%clk
00:07:29]} {[%emt 00:00:08]} Kf7 {[%clk 00:06:17]} {[%emt 00:00:02]} 21. b4
{[%clk 00:06:47]} {[%emt 00:00:47]} Ke7 {[%clk 00:06:08]} {[%emt 00:00:15]} 22.
a3 {[%clk 00:06:39]} {[%emt 00:00:13]} a5 {[%clk 00:06:02]} {[%emt 00:00:11]}
23. c5 {[%clk 00:05:26]} {[%emt 00:01:17]} axb4 {[%clk 00:05:50]} {[%emt
00:00:18]} 24. axb4 {[%clk 00:05:29]} {[%emt 00:00:01]} Ra2 {[%clk 00:05:29]}
{[%emt 00:00:26]} 25. Bc4 {[%clk 00:04:53]} {[%emt 00:00:42]} Bxc4 {[%clk
00:05:19]} {[%emt 00:00:15]} 26. Rxc4 {[%clk 00:04:57]} {[%emt 00:00:01]} Rd8
{[%clk 00:05:22]} 27. Rcc1 {[%clk 00:04:41]} {[%emt 00:00:20]} Rxd1+ {[%clk
00:05:06]} {[%emt 00:00:21]} 28. Rxd1 {[%clk 00:04:45]} Rb2 {[%clk 00:05:10]}
{[%emt 00:00:01]} 29. h4 {[%clk 00:04:10]} {[%emt 00:00:40]} Rxb4 {[%clk
00:05:13]} {[%emt 00:00:02]} 30. g3 {[%clk 00:03:07]} {[%emt 00:01:08]} Rb2
{[%clk 00:04:51]} {[%emt 00:00:28]} 31. Kf1 {[%clk 00:02:24]} {[%emt 00:00:47]}
Rb5 {[%clk 00:03:55]} {[%emt 00:01:03]} 32. Rc1 {[%clk 00:02:19]} {[%emt
00:00:08]} Kd7 {[%clk 00:03:59]} {[%emt 00:00:01]} 33. Ke2 {[%clk 00:01:45]}
{[%emt 00:00:38]} Kc6 {[%clk 00:04:04]} {[%emt 00:00:01]} 34. Rd1 {[%clk
00:01:16]} {[%emt 00:00:34]} Rxc5 {[%clk 00:04:03]} {[%emt 00:00:05]} 35. Rd8
{[%clk 00:01:19]} {[%emt 00:00:02]} Rc2+ {[%clk 00:03:48]} {[%emt 00:00:21]} 36.
Ke3 {[%clk 00:01:16]} {[%emt 00:00:08]} Rc3+ {[%clk 00:03:51]} {[%emt
00:00:02]} 37. Ke2 {[%clk 00:00:57]} {[%emt 00:00:23]} Rd3 {[%clk 00:03:55]}
0-1

[Event "SS Manhem Chess Week 2022: Goteborg Open"]
[Site "Schackcentrum, Vegagatan 20, Gothenburg, Sweden"]
[Date "2022.08.12"]
[Round "2.6"]
[White "Pettersson, Anders"]
[Black "Eldh, Hjalmar"]
[Result "1-0"]
[TimeControl "15 minutes + 5 seconds per move from move one (Round 1 - 4) / 90 minutes + 30 seconds per move from move one (Round 5 - 8)"]
[WhiteFideId "1715143"]
[BlackFideId "1767968"]
[WhiteElo "2042"]
[BlackElo "1711"]

1. d4 {[%clk 00:15:09]} {[%emt 00:01:29]} Nf6 {[%clk 00:15:09]} {[%emt
00:00:01]} 2. c4 {[%clk 00:15:12]} {[%emt 00:00:03]} g6 {[%clk 00:15:13]} 3.
Nc3 {[%clk 00:15:16]} d5 {[%clk 00:15:17]} {[%emt 00:00:02]} 4. Bf4 {[%clk
00:15:11]} {[%emt 00:00:09]} Bg7 {[%clk 00:15:16]} {[%emt 00:00:06]} 5. e3
{[%clk 00:15:14]} {[%emt 00:00:03]} O-O {[%clk 00:15:16]} {[%emt 00:00:04]} 6.
cxd5 {[%clk 00:15:17]} {[%emt 00:00:02]} Nxd5 {[%clk 00:15:19]} {[%emt
00:00:02]} 7. Nxd5 {[%clk 00:15:20]} {[%emt 00:00:02]} Qxd5 {[%clk 00:15:21]}
{[%emt 00:00:03]} 8. Bxc7 {[%clk 00:15:23]} {[%emt 00:00:02]} Nc6 {[%clk
00:15:24]} {[%emt 00:00:03]} 9. Ne2 {[%clk 00:15:24]} {[%emt 00:00:03]} Bg4
{[%clk 00:14:57]} {[%emt 00:00:33]} 10. f3 {[%clk 00:15:11]} {[%emt 00:00:17]}
Bd7 {[%clk 00:14:50]} {[%emt 00:00:11]} 11. Nc3 {[%clk 00:15:15]} {[%emt
00:00:02]} Qg5 {[%clk 00:14:32]} {[%emt 00:00:18]} 12. Bf4 {[%clk 00:15:03]}
{[%emt 00:00:20]} Qa5 {[%clk 00:14:36]} {[%emt 00:00:02]} 13. Be2 {[%clk
00:14:04]} {[%emt 00:01:03]} Rad8 {[%clk 00:14:16]} {[%emt 00:00:26]} 14. O-O
{[%clk 00:13:31]} {[%emt 00:00:38]} e5 {[%clk 00:14:18]} {[%emt 00:00:04]} 15.
dxe5 {[%clk 00:13:33]} {[%emt 00:00:03]} Nxe5 {[%clk 00:14:16]} {[%emt
00:00:06]} 16. Qc2 {[%clk 00:12:25]} {[%emt 00:01:12]} Rc8 {[%clk 00:12:58]}
{[%emt 00:01:24]} 17. Rfd1 {[%clk 00:12:18]} {[%emt 00:00:13]} Bf5 {[%clk
00:12:17]} {[%emt 00:00:45]} 18. e4 {[%clk 00:12:15]} {[%emt 00:00:08]} Qc5+
{[%clk 00:11:52]} {[%emt 00:00:30]} 19. Kh1 {[%clk 00:12:07]} {[%emt 00:00:13]}
Be6 {[%clk 00:11:54]} {[%emt 00:00:02]} 20. Qd2 {[%clk 00:11:18]} {[%emt
00:00:55]} Nc4 {[%clk 00:11:31]} {[%emt 00:00:29]} 21. Bxc4 {[%clk 00:11:19]}
{[%emt 00:00:04]} Qxc4 {[%clk 00:11:28]} {[%emt 00:00:08]} 22. Rac1 {[%clk
00:11:17]} {[%emt 00:00:06]} Bxc3 {[%clk 00:11:01]} {[%emt 00:00:32]} 23. Rxc3
{[%clk 00:11:17]} {[%emt 00:00:05]} Qxa2 {[%clk 00:11:03]} {[%emt 00:00:03]} 24.
Bh6 {[%clk 00:10:43]} {[%emt 00:00:39]} Rxc3 {[%clk 00:10:16]} {[%emt
00:00:53]} 25. Qxc3 {[%clk 00:10:42]} {[%emt 00:00:05]} f6 {[%clk 00:10:14]}
{[%emt 00:00:07]} 26. Bxf8 {[%clk 00:10:44]} {[%emt 00:00:03]} Kxf8 {[%clk
00:10:09]} {[%emt 00:00:11]} 27. Qxf6+ {[%clk 00:10:46]} {[%emt 00:00:02]} Bf7
{[%clk 00:09:59]} {[%emt 00:00:16]} 28. Rd8# {[%clk 00:10:42]} {[%emt
00:00:03]} 1-0

[Event "SS Manhem Chess Week 2022: Goteborg Open"]
[Site "Schackcentrum, Vegagatan 20, Gothenburg, Sweden"]
[Date "2022.08.12"]
[Round "2.7"]
[White "Asbrink, Adam"]
[Black "Johansson, Jan"]
[Result "1-0"]
[TimeControl "15 minutes + 5 seconds per move from move one (Round 1 - 4) / 90 minutes + 30 seconds per move from move one (Round 5 - 8)"]
[WhiteFideId "1767410"]
[BlackFideId "1747568"]
[WhiteElo "1977"]
[BlackElo "1666"]

1. d4 {[%clk 00:15:07]} {[%emt 00:00:05]} Nf6 {[%clk 00:15:08]} 2. Nc3 {[%clk
00:15:09]} {[%emt 00:00:02]} d5 {[%clk 00:14:54]} {[%emt 00:00:20]} 3. Bf4
{[%clk 00:15:11]} {[%emt 00:00:03]} c6 {[%clk 00:14:41]} {[%emt 00:00:18]} 4.
e3 {[%clk 00:15:13]} {[%emt 00:00:03]} Bf5 {[%clk 00:14:27]} {[%emt 00:00:19]}
5. f3 {[%clk 00:15:14]} {[%emt 00:00:04]} e6 {[%clk 00:14:22]} {[%emt
00:00:11]} 6. g4 {[%clk 00:15:16]} {[%emt 00:00:02]} Bg6 {[%clk 00:14:19]}
{[%emt 00:00:08]} 7. h4 {[%clk 00:15:18]} {[%emt 00:00:03]} h5 {[%clk
00:13:56]} {[%emt 00:00:28]} 8. g5 {[%clk 00:15:20]} {[%emt 00:00:03]} Nfd7
{[%clk 00:13:52]} {[%emt 00:00:09]} 9. Bg3 {[%clk 00:14:52]} {[%emt 00:00:33]}
Qb6 {[%clk 00:13:08]} {[%emt 00:00:49]} 10. Rb1 {[%clk 00:12:52]} {[%emt
00:02:05]} Na6 {[%clk 00:13:08]} {[%emt 00:00:05]} 11. a3 {[%clk 00:12:36]}
{[%emt 00:00:21]} Nc7 {[%clk 00:12:31]} {[%emt 00:00:41]} 12. Nge2 {[%clk
00:11:19]} {[%emt 00:01:22]} Be7 {[%clk 00:12:25]} {[%emt 00:00:11]} 13. Nf4
{[%clk 00:11:20]} {[%emt 00:00:04]} Bh7 {[%clk 00:11:48]} {[%emt 00:00:43]} 14.
Qd2 {[%clk 00:09:32]} {[%emt 00:01:52]} O-O-O {[%clk 00:11:13]} {[%emt
00:00:40]} 15. Na4 {[%clk 00:09:30]} {[%emt 00:00:08]} Bf8 {[%clk 00:00:00]}
{[%emt 00:00:10]} 1-0

[Event "SS Manhem Chess Week 2022: Goteborg Open"]
[Site "Schackcentrum, Vegagatan 20, Gothenburg, Sweden"]
[Date "2022.08.12"]
[Round "2.8"]
[White "Persson, Sebastian"]
[Black "Fransson, Lennart"]
[Result "0-1"]
[TimeControl "15 minutes + 5 seconds per move from move one (Round 1 - 4) / 90 minutes + 30 seconds per move from move one (Round 5 - 8)"]
[WhiteFideId "1764187"]
[BlackFideId "1706756"]
[WhiteElo "1631"]
[BlackElo "1958"]

1. d4 {[%clk 00:15:07]} {[%emt 00:00:03]} Nf6 {[%clk 00:15:08]} {[%emt
00:00:02]} 2. c4 {[%clk 00:15:10]} {[%emt 00:00:03]} c5 {[%clk 00:15:11]}
{[%emt 00:00:02]} 3. Nf3 {[%clk 00:15:12]} {[%emt 00:00:02]} g6 {[%clk
00:15:15]} {[%emt 00:00:02]} 4. g3 {[%clk 00:15:09]} {[%emt 00:00:08]} Bg7
{[%clk 00:15:18]} {[%emt 00:00:02]} 5. Bg2 {[%clk 00:15:11]} {[%emt 00:00:01]}
O-O {[%clk 00:15:20]} {[%emt 00:00:03]} 6. O-O {[%clk 00:15:12]} {[%emt
00:00:04]} Na6 {[%clk 00:15:23]} {[%emt 00:00:02]} 7. Nc3 {[%clk 00:14:53]}
{[%emt 00:00:24]} d6 {[%clk 00:15:25]} {[%emt 00:00:04]} 8. dxc5 {[%clk
00:13:50]} {[%emt 00:01:09]} Nxc5 {[%clk 00:15:23]} {[%emt 00:00:05]} 9. Qc2
{[%clk 00:13:49]} {[%emt 00:00:06]} Bf5 {[%clk 00:15:03]} {[%emt 00:00:24]} 10.
Qd1 {[%clk 00:13:15]} {[%emt 00:00:40]} Nfe4 {[%clk 00:14:25]} {[%emt
00:00:43]} 11. Nd4 {[%clk 00:12:50]} {[%emt 00:00:29]} Rc8 {[%clk 00:13:05]}
{[%emt 00:01:25]} 12. Nxf5 {[%clk 00:11:49]} {[%emt 00:01:06]} gxf5 {[%clk
00:13:05]} {[%emt 00:00:05]} 13. Qc2 {[%clk 00:11:12]} {[%emt 00:00:42]} Nxc3
{[%clk 00:12:05]} {[%emt 00:01:05]} 14. bxc3 {[%clk 00:11:13]} {[%emt
00:00:04]} Qd7 {[%clk 00:11:01]} {[%emt 00:01:09]} 15. Be3 {[%clk 00:10:44]}
{[%emt 00:00:33]} Na4 {[%clk 00:10:14]} {[%emt 00:00:51]} 16. Rab1 {[%clk
00:09:18]} {[%emt 00:01:31]} b6 {[%clk 00:09:51]} {[%emt 00:00:28]} 17. Bd4
{[%clk 00:08:50]} {[%emt 00:00:33]} e5 {[%clk 00:09:35]} {[%emt 00:00:22]} 18.
Be3 {[%clk 00:08:53]} {[%emt 00:00:02]} Rxc4 {[%clk 00:09:13]} {[%emt
00:00:27]} 19. Rb4 {[%clk 00:08:33]} {[%emt 00:00:25]} Rfc8 {[%clk 00:08:50]}
{[%emt 00:00:27]} 20. Rxc4 {[%clk 00:07:01]} {[%emt 00:01:38]} Rxc4 {[%clk
00:08:52]} {[%emt 00:00:02]} 21. Bh3 {[%clk 00:04:06]} {[%emt 00:03:01]} e4
{[%clk 00:07:01]} {[%emt 00:01:55]} 22. Qb3 {[%clk 00:03:35]} {[%emt 00:00:36]}
b5 {[%clk 00:06:29]} {[%emt 00:00:36]} 23. Bd4 {[%clk 00:02:57]} {[%emt
00:00:43]} Nxc3 {[%clk 00:05:42]} {[%emt 00:00:52]} 24. Bxg7 {[%clk 00:02:20]}
{[%emt 00:00:43]} Kxg7 {[%clk 00:05:13]} {[%emt 00:00:34]} 25. Qb2 {[%clk
00:02:02]} {[%emt 00:00:24]} Kg8 {[%clk 00:05:01]} {[%emt 00:00:16]} 26. Qd2
{[%clk 00:01:43]} {[%emt 00:00:24]} Qe6 {[%clk 00:04:00]} {[%emt 00:01:06]} 27.
Re1 {[%clk 00:01:16]} {[%emt 00:00:32]} Rc5 {[%clk 00:03:18]} {[%emt 00:00:47]}
28. Qg5+ {[%clk 00:00:53]} {[%emt 00:00:28]} Qg6 {[%clk 00:03:21]} {[%emt
00:00:03]} 29. Qd8+ {[%clk 00:00:53]} {[%emt 00:00:05]} Kg7 {[%clk 00:03:22]}
{[%emt 00:00:03]} 30. Qd7 {[%clk 00:00:40]} {[%emt 00:00:18]} f4 {[%clk
00:03:11]} {[%emt 00:00:17]} 31. Qxa7 {[%clk 00:00:30]} {[%emt 00:00:16]} e3
{[%clk 00:03:05]} {[%emt 00:00:09]} 32. fxe3 {[%clk 00:00:06]} {[%emt
00:00:30]} fxg3 {[%clk 00:02:59]} {[%emt 00:00:10]} 33. hxg3 {[%clk 00:00:09]}
{[%emt 00:00:02]} Qxg3+ {[%clk 00:03:00]} {[%emt 00:00:04]} 34. Bg2 {[%clk
00:00:12]} {[%emt 00:00:02]} Qxe1+ {[%clk 00:02:55]} {[%emt 00:00:11]} 35. Kh2
{[%clk 00:00:16]} {[%emt 00:00:01]} Rh5+ {[%clk 00:02:54]} {[%emt 00:00:06]} 36.
Bh3 {[%clk 00:00:19]} {[%emt 00:00:01]} Qf2+ {[%clk 00:02:47]} {[%emt
00:00:12]} 0-1

[Event "SS Manhem Chess Week 2022: Goteborg Open"]
[Site "Schackcentrum, Vegagatan 20, Gothenburg, Sweden"]
[Date "2022.08.12"]
[Round "2.10"]
[White "Karlsson, Stefan"]
[Black "Ottgard, Andreas"]
[Result "1/2-1/2"]
[TimeControl "15 minutes + 5 seconds per move from move one (Round 1 - 4) / 90 minutes + 30 seconds per move from move one (Round 5 - 8)"]
[WhiteFideId "1771183"]
[BlackFideId "1730592"]
[WhiteElo "1560"]
[BlackElo "1883"]

1. e4 {[%clk 00:15:09]} {[%emt 00:00:01]} e6 {[%clk 00:15:08]} {[%emt
00:00:03]} 2. d4 {[%clk 00:15:12]} d5 {[%clk 00:15:12]} {[%emt 00:00:01]} 3.
Bb5+ {[%clk 00:15:16]} Bd7 {[%clk 00:14:31]} {[%emt 00:00:46]} 4. Bd3 {[%clk
00:15:12]} {[%emt 00:00:09]} dxe4 {[%clk 00:13:49]} {[%emt 00:00:47]} 5. Bxe4
{[%clk 00:15:14]} {[%emt 00:00:03]} Bc6 {[%clk 00:13:49]} {[%emt 00:00:05]} 6.
Bf3 {[%clk 00:15:04]} {[%emt 00:00:15]} Nf6 {[%clk 00:13:39]} {[%emt 00:00:15]}
7. Bg5 {[%clk 00:14:57]} {[%emt 00:00:12]} Be7 {[%clk 00:13:16]} {[%emt
00:00:29]} 8. c3 {[%clk 00:13:48]} {[%emt 00:01:13]} O-O {[%clk 00:12:56]}
{[%emt 00:00:25]} 9. Nd2 {[%clk 00:13:46]} {[%emt 00:00:07]} h6 {[%clk
00:12:16]} {[%emt 00:00:45]} 10. Bh4 {[%clk 00:13:24]} {[%emt 00:00:27]} Bxf3
{[%clk 00:11:01]} {[%emt 00:01:20]} 11. Ngxf3 {[%clk 00:13:23]} {[%emt
00:00:07]} Nbd7 {[%clk 00:10:57]} {[%emt 00:00:08]} 12. O-O {[%clk 00:13:08]}
{[%emt 00:00:19]} c5 {[%clk 00:10:42]} {[%emt 00:00:20]} 13. Qb3 {[%clk
00:12:17]} {[%emt 00:00:56]} b6 {[%clk 00:08:06]} {[%emt 00:02:41]} 14. Bg3
{[%emt 00:01:23]} Nd5 {[%clk 00:07:02]} {[%emt 00:01:08]} 15. Nc4 {[%clk
00:10:26]} {[%emt 00:00:39]} Bf6 {[%clk 00:06:31]} {[%emt 00:00:35]} 16. Bd6
{[%clk 00:10:00]} {[%emt 00:00:32]} Re8 {[%clk 00:04:35]} {[%emt 00:02:01]} 17.
Nfe5 {[%clk 00:09:53]} {[%emt 00:00:13]} cxd4 {[%clk 00:04:13]} {[%emt
00:00:26]} 18. cxd4 {[%clk 00:09:38]} {[%emt 00:00:20]} Nxe5 {[%clk 00:01:32]}
{[%emt 00:02:47]} 19. dxe5 {[%clk 00:09:41]} {[%emt 00:00:01]} Be7 {[%clk
00:01:33]} {[%emt 00:00:04]} 20. Rfd1 {[%clk 00:09:27]} {[%emt 00:00:19]} Qc8
{[%clk 00:01:22]} {[%emt 00:00:16]} 21. Rac1 {[%clk 00:09:20]} {[%emt
00:00:12]} Qb7 {[%clk 00:01:25]} {[%emt 00:00:02]} 22. Bxe7 {[%clk 00:08:57]}
{[%emt 00:00:29]} Rxe7 {[%clk 00:01:07]} {[%emt 00:00:22]} 23. Nd6 {[%clk
00:08:59]} {[%emt 00:00:03]} Qa6 {[%clk 00:01:03]} {[%emt 00:00:10]} 24. a3
{[%clk 00:07:59]} {[%emt 00:01:05]} Rd8 {[%clk 00:01:05]} {[%emt 00:00:02]} 25.
Qb5 {[%clk 00:07:40]} {[%emt 00:00:24]} Qxb5 {[%clk 00:01:02]} {[%emt
00:00:09]} 26. Nxb5 {[%clk 00:07:44]} f6 {[%clk 00:00:54]} {[%emt 00:00:12]} 27.
f4 {[%clk 00:07:20]} {[%emt 00:00:29]} Red7 {[%clk 00:00:46]} {[%emt 00:00:13]}
28. g3 {[%clk 00:07:07]} {[%emt 00:00:18]} g5 {[%clk 00:00:19]} {[%emt
00:00:32]} 29. fxg5 {[%clk 00:05:48]} {[%emt 00:01:24]} hxg5 {[%clk 00:00:19]}
{[%emt 00:00:05]} 30. exf6 {[%clk 00:05:47]} {[%emt 00:00:06]} Nxf6 {[%clk
00:00:15]} {[%emt 00:00:09]} 31. Rxd7 {[%clk 00:05:48]} {[%emt 00:00:04]} Rxd7
{[%clk 00:00:20]} 32. Rc8+ {[%clk 00:05:48]} {[%emt 00:00:04]} Kf7 {[%clk
00:00:23]} {[%emt 00:00:02]} 33. b4 {[%clk 00:05:01]} {[%emt 00:00:52]} a5
{[%clk 00:00:25]} {[%emt 00:00:03]} 34. bxa5 {[%clk 00:04:54]} {[%emt
00:00:11]} bxa5 {[%clk 00:00:28]} {[%emt 00:00:03]} 35. Ra8 {[%clk 00:04:58]}
Rd2 {[%clk 00:00:16]} {[%emt 00:00:17]} 36. Ra7+ {[%clk 00:04:56]} {[%emt
00:00:07]} Kg6 {[%clk 00:00:19]} {[%emt 00:00:02]} 37. Rxa5 {[%clk 00:04:55]}
{[%emt 00:00:06]} Ra2 {[%clk 00:00:20]} {[%emt 00:00:04]} 38. Ra6 {[%clk
00:04:48]} {[%emt 00:00:12]} Kf7 {[%clk 00:00:17]} {[%emt 00:00:08]} 39. Nd6+
{[%clk 00:04:38]} {[%emt 00:00:16]} Ke7 {[%clk 00:00:20]} {[%emt 00:00:02]} 40.
Nc8+ {[%clk 00:04:33]} {[%emt 00:00:09]} Kd7 {[%clk 00:00:23]} {[%emt
00:00:02]} 41. Nb6+ {[%clk 00:04:27]} {[%emt 00:00:12]} Ke7 {[%clk 00:00:26]}
{[%emt 00:00:02]} 42. Ra4 {[%clk 00:04:23]} {[%emt 00:00:08]} Kd6 {[%clk
00:00:22]} {[%emt 00:00:09]} 43. Nc4+ {[%clk 00:04:20]} {[%emt 00:00:08]} Kc5
{[%clk 00:00:22]} {[%emt 00:00:05]} 44. Ne3 {[%clk 00:04:01]} {[%emt 00:00:25]}
Nd5 {[%clk 00:00:16]} {[%emt 00:00:11]} 45. Nxd5 {[%clk 00:03:57]} {[%emt
00:00:08]} exd5 {[%clk 00:00:18]} {[%emt 00:00:03]} 46. Ra5+ Kc4 {[%clk
00:00:18]} 1/2-1/2

[Event "SS Manhem Chess Week 2022: Goteborg Open"]
[Site "Schackcentrum, Vegagatan 20, Gothenburg, Sweden"]
[Date "2022.08.12"]
[Round "2.11"]
[White "Kosmidis, Thomas"]
[Black "Lindholm, Marcus"]
[Result "0-1"]
[TimeControl "15 minutes + 5 seconds per move from move one (Round 1 - 4) / 90 minutes + 30 seconds per move from move one (Round 5 - 8)"]
[WhiteFideId "1753380"]
[BlackFideId "1743473"]
[WhiteElo "1673"]
[BlackElo "1666"]

1. d4 {[%clk 00:15:07]} d5 {[%clk 00:15:08]} {[%emt 00:00:02]} 2. c4 {[%clk
00:15:10]} {[%emt 00:00:04]} c6 {[%clk 00:15:09]} {[%emt 00:00:03]} 3. cxd5
{[%clk 00:15:12]} {[%emt 00:00:04]} cxd5 {[%clk 00:15:09]} {[%emt 00:00:04]} 4.
Nc3 {[%clk 00:15:15]} {[%emt 00:00:03]} Nc6 {[%clk 00:15:04]} {[%emt 00:00:09]}
5. Nf3 {[%clk 00:15:15]} {[%emt 00:00:05]} Nf6 {[%clk 00:15:06]} {[%emt
00:00:04]} 6. h3 {[%clk 00:15:07]} {[%emt 00:00:13]} e6 {[%clk 00:14:07]}
{[%emt 00:01:04]} 7. Bg5 {[%clk 00:15:06]} {[%emt 00:00:05]} Qb6 {[%clk
00:13:38]} {[%emt 00:00:35]} 8. Rb1 {[%clk 00:13:39]} {[%emt 00:01:32]} Ne4
{[%clk 00:13:15]} {[%emt 00:00:27]} 9. Be3 {[%clk 00:12:45]} {[%emt 00:01:00]}
Bb4 {[%clk 00:13:07]} {[%emt 00:00:14]} 10. Rc1 {[%clk 00:12:04]} {[%emt
00:00:46]} Qa5 {[%clk 00:12:39]} {[%emt 00:00:33]} 11. Qb3 {[%clk 00:12:05]}
{[%emt 00:00:04]} Bd7 {[%clk 00:11:44]} {[%emt 00:01:00]} 12. a3 {[%clk
00:12:08]} {[%emt 00:00:02]} Bxc3+ {[%clk 00:11:07]} {[%emt 00:00:42]} 13. bxc3
{[%clk 00:11:58]} {[%emt 00:00:16]} Qb6 {[%clk 00:10:55]} {[%emt 00:00:17]} 14.
Qa2 {[%clk 00:10:12]} {[%emt 00:01:51]} Na5 {[%clk 00:09:41]} {[%emt 00:01:19]}
15. Nd2 {[%clk 00:09:33]} {[%emt 00:00:44]} Nxd2 {[%clk 00:09:07]} {[%emt
00:00:39]} 16. Bxd2 {[%clk 00:09:30]} {[%emt 00:00:08]} Rc8 {[%clk 00:08:20]}
{[%emt 00:00:52]} 17. e3 {[%clk 00:09:15]} {[%emt 00:00:20]} Nc4 {[%clk
00:07:04]} {[%emt 00:01:21]} 18. Rb1 {[%clk 00:08:23]} {[%emt 00:00:57]} Qa6
{[%clk 00:06:07]} {[%emt 00:01:02]} 19. Bd3 {[%clk 00:07:13]} {[%emt 00:01:16]}
Bb5 {[%clk 00:04:22]} {[%emt 00:01:49]} 20. Bc1 {[%clk 00:06:28]} {[%emt
00:00:49]} Nd6 {[%clk 00:04:12]} {[%emt 00:00:15]} 21. Bxb5+ {[%clk 00:06:15]}
{[%emt 00:00:18]} Nxb5 {[%clk 00:04:07]} {[%emt 00:00:10]} 22. Bd2 {[%clk
00:06:11]} {[%emt 00:00:07]} Nxc3 {[%clk 00:03:59]} {[%emt 00:00:15]} 23. Bxc3
{[%clk 00:04:43]} {[%emt 00:01:34]} Rxc3 {[%clk 00:04:02]} {[%emt 00:00:02]} 24.
Qb2 {[%clk 00:04:39]} {[%emt 00:00:09]} Rxa3 {[%clk 00:03:54]} {[%emt
00:00:13]} 25. Qb4 {[%clk 00:03:55]} {[%emt 00:00:49]} Ra2 {[%clk 00:03:34]}
{[%emt 00:00:24]} 26. Rb2 {[%clk 00:03:43]} {[%emt 00:00:18]} Ra4 {[%clk
00:03:07]} {[%emt 00:00:32]} 27. Qc5 {[%clk 00:03:22]} {[%emt 00:00:25]} Rc4
{[%clk 00:03:02]} {[%emt 00:00:10]} 0-1